Cogmind - Beta 11.1 *** ADVENTURER MODE // 2022.09.21 @ 00:42:39 Player: Olexender Result: Destroyed by as-30743 with Assembled Heavy Rifle Performance ------------- Evolutions (0) 0 Regions Visited (2) 400 Robots Destroyed (26) 130 Value Destroyed (362) 362 Prototype IDs (1) 20 Alien Tech Used (0) 0 Bonus (0) 0 TOTAL SCORE: 912 Bonus ------- None Cogmind --------- Core Integrity 0/250 Matter 300/300 Energy 100/100 System Corruption 4% Temperature Cool (0) Movement Rolling (80) Location -10/Mines Parts ------- > --- POWER (1) -------- (None) > --- PROPULSION (2) --- Wheel > --- UTILITY (2) ------ Targeting Computer > --- WEAPON (2) ------- (None) > --- INVENTORY (5) ---- Ion Engine Medium Storage Unit ECM Suite Utility Shielding Peak State ------------ > --- POWER ------------ Light Nuclear Core > --- PROPULSION ------- Aluminum Leg Aluminum Leg > --- UTILITY ---------- Medium Storage Unit Light Armor Plating > --- WEAPON ----------- EM Pulse Gun Assault Rifle > --- INVENTORY -------- Ion Engine Ion Engine Heavy Ion Engine Compact Wheel Compact Wheel Large Storage Unit Seismic Detector Targeting Computer ECM Suite Utility Shielding [Rating: 10] Favorites ----------- Power Light Nuclear Core Engine Ion Engine Power Core Light Nuclear Core Propulsion Aluminum Leg Leg Aluminum Leg Wheel Wheel Utility Structural Scanner Device Structural Scanner Storage Medium Storage Unit Processor Targeting Computer Protection Light Armor Plating Weapon Assault Rifle Energy Gun EM Pulse Gun Ballistic Gun Assault Rifle Build | -11 -10 -10 ------- Run | Scr Mat Min Slots Evolved . | . . . Power . | . . . Propulsion . | . . . Utility . | . . . Weapon . | . . . Parts Attached 19 | 6 9 4 Power 4 | 1 3 . Engine 2 | 1 1 . Core 2 | . 2 . Reactor . | . . . Propulsion 4 | 2 1 1 Treads . | . . . Leg 3 | 2 1 . Wheel 1 | . . 1 Hover . | . . . Flight . | . . . Utility 4 | . 4 . Device 1 | . 1 . Storage 1 | . 1 . Processor 1 | . 1 . Hackware . | . . . Protection 1 | . 1 . Artifact . | . . . Weapon 7 | 3 1 3 Energy Gun 4 | 1 1 2 Energy Cannon . | . . . Ballistic Gun 3 | 2 . 1 Ballistic Cannon . | . . . Launcher . | . . . Special Weapon . | . . . Impact Weapon . | . . . Slashing Weapon . | . . . Piercing Weapon . | . . . Special Melee Weapon . | . . . Unidentified Prototypes 1 | . 1 . Parts Lost 8 | . 1 7 Power 1 | . . 1 Propulsion 2 | . . 2 Utility 2 | . 1 1 Weapon 3 | . . 3 Highest Loss Streak 6 | . 1 6 To Critical Strikes 1 | . . 1 Average Slot Usage (%) 95 | . 97 79 Engine 6 | . 7 . Core 7 | . 6 11 Leg 25 | . 28 13 Device 7 | . 6 14 Storage 5 | . 6 . Processor 6 | . 5 14 Protection 6 | . 7 . Energy Gun 13 | . 14 12 Ballistic Gun 13 | . 14 11 Naked Turns . | . . . Heaviest Build 22 | 9 22 11 Greatest Support 20 | 20 20 20 Greatest Overweight (x) 1 | 1 1 1 Average Overweight (x) . | . . . Largest Inventory Capacity 10 | 5 10 5 Average Capacity 6 | 5 7 5 Most Carried 10 | 5 10 5 Average Carried 5 | 3 6 4 Final Capacity 5 | 5 5 5 Final Carried 5 | 5 5 4 Class Distribution -------------------- 91% | Mutant 8% | Scavenger-Mutant Dominant Class ---------------- Mutant | -10/Materials Scavenger-Mutant | -10/Mines Resources | -11 -10 -10 ----------- Run | Scr Mat Min Matter Collected 569 | 285 214 70 Remotely . | . . . Salvage Created 750 | 125 420 205 Parts 53 | 13 32 8 Haulers Intercepted . | . . . Recyclers Shooed . | . . . Parts Field Recycled . | . . . Retrieved Matter . | . . . Parts Self-Destructed . | . . . Prevented . | . . . Kills | -11 -10 -10 ------- Run | Scr Mat Min Combat Hostiles Destroyed 21 | . 10 11 Guns 20 | . 9 11 AOE 1 | . 1 . Classes Destroyed 9 | 2 6 1 Worker 3 | . 3 . Builder 1 | . 1 . Tunneler 4 | 3 . 1 Recycler 1 | 1 . . Mechanic 1 | . 1 . Watcher 3 | . 3 . Swarmer 9 | . 6 3 Grunt 4 | . 4 . Assembled 8 | . . 8 Best Kill Streak 6 | 4 6 5 Combat Bots Only 6 | . 6 5 Max Kills in Single Turn 2 | 2 2 2 Gunslinging 1 | . 1 1 Exploded 1 | . 1 . Melee . | . . . Uniques/NPCs Destroyed . | . . . Combat | -11 -10 -10 -------- Run | Scr Mat Min Damage Taken 1012 | . 362 650 Core 261 | . 6 255 Absorbed by Shields . | . . . Core Remaining (%) 100 | 100 . . Volleys Fired 65 | 7 29 29 Largest 2 | 2 2 2 Hottest 76 | 60 60 76 Shots Fired 130 | 14 61 55 Gun 130 | 14 61 55 Cannon . | . . . Launcher . | . . . Special . | . . . Kinetic 67 | 11 30 26 Thermal 29 | . . 29 Explosive . | . . . Electromagnetic 34 | 3 31 . Robot Hit Streak 13 | 11 13 10 Robot Miss Streak 4 | . 4 1 Penetration Max . | . . . Secondary Targets 8 | . 3 5 Max Gunslinging Chain 1 | . 1 1 Shots Hit Robots 90 | 11 37 42 Core Hits 54 | 6 22 26 Critical Kills . | . . . Critical Parts Destroyed . | . . . Critical Strikes 2 | . . 2 Burn 2 | . . 2 Melee Attacks . | . . . Impact . | . . . Slashing . | . . . Piercing . | . . . Sneak Attacks . | . . . Combat Hostiles . | . . . Follow-up Attacks . | . . . Damage Inflicted 1404 | 129 766 509 Guns 1146 | 129 533 484 Cannons . | . . . Explosions 233 | . 233 . Melee . | . . . Ramming 25 | . . 25 Kinetic 509 | 104 213 192 Thermal 525 | . 233 292 Explosive . | . . . Electromagnetic 345 | 25 320 . Impact . | . . . Slashing . | . . . Piercing . | . . . Highest Corruption 4 | . 4 4 Average Corruption 4 | . 4 4 Corruption Purged . | . . . Corruption Blocked . | . . . Effects 18 | . 12 6 Message Errors 3 | . 3 . Matter Fused 3 | . 2 1 Heat Flow Errors 2 | . 2 . Parts Rejected 1 | . . 1 Data Loss (minor) 2 | . 1 1 Data Loss (major) 2 | . 1 1 Misfires 4 | . 3 1 Weapon Failures 1 | . . 1 Overload Shots . | . . . Overflow Damage 96 | . 96 . Projectiles . | . . . Explosions 96 | . 96 . Melee . | . . . Knockbacks . | . . . Impact . | . . . Kinetic . | . . . Secondary . | . . . Self-Inflicted Damage 146 | . 136 10 Shots 3 | . 3 . Rammed 11 | . . 11 Targets Rammed 11 | . . 11 Kicked . | . . . Crushed . | . . . Highest Temperature 258 | . 258 252 Average Temperature 60 | . 44 78 Received Heat Transfer 123 | . 123 . Effects 2 | . 1 1 Energy Bleed 1 | . . 1 Interference 1 | . 1 . Siege Activations . | . . . Robots Corrupted . | . . . Combat Hostiles . | . . . Parts Fried 1 | . 1 . Impact Corruptions . | . . . Robots Melted . | . . . Combat Hostiles . | . . . Parts Melted . | . . . Heat Transferred 1038 | . 150 888 Parts Sabotaged . | . . . Parts Stolen . | . . . Parts Stripped . | . . . Power Chain Reactions 3 | . 3 . Missiles Intercepted . | . . . Alert | -11 -10 -10 ------- Run | Scr Mat Min Peak Influence 210 | 20 210 75 Initial 11 | . 11 . Average 49 | 5 51 53 Maximum Alert Level 1 | . 1 . Low Security (%) 95 | 100 94 100 Level 1 4 | . 5 . Level 2 . | . . . Level 3 . | . . . Level 4 . | . . . Level 5 . | . . . High Security . | . . . Max Security . | . . . Squads Dispatched 1 | . 1 . Investigation 1 | . 1 . Extermination . | . . . Reinforcement . | . . . Assault . | . . . Garrison . | . . . Intercept . | . . . Searches Triggered . | . . . Construction Impeded . | . . . Haulers Reinforced . | . . . Active Scanning Responses . | . . . Cargo Convoy Interrupts . | . . . Stealth | -11 -10 -10 --------- Run | Scr Mat Min Distress Signals . | . . . Communications Jammed . | . . . Distress Signals . | . . . Times Spotted 27 | . 13 14 Peak Tracking Total 4 | . 3 4 Tactical Retreats . | . . . Traps | -11 -10 -10 ------- Run | Scr Mat Min Traps Triggered . | . . . Indirectly . | . . . Trap Hack Attempts . | . . . Triggered . | . . . Disarmed 1 | . 1 . Reprogrammed . | . . . Reused . | . . . Traps Extracted . | . . . Installed . | . . . Triggered . | . . . Machines | -11 -10 -10 ---------- Run | Scr Mat Min Machines Disabled 2 | . 2 . Max in Single Turn 2 | . 2 . Machines Sabotaged . | . . . Garrisons Compromised . | . . . Overloaded Fab Kills . | . . . Hacking | -11 -10 -10 --------- Run | Scr Mat Min Machines Accessed 9 | . 9 . Terminals 7 | . 7 . Fabricators . | . . . Repair Stations . | . . . Recycling Units 2 | . 2 . Scanalyzers . | . . . Garrison Access . | . . . Total Hacks 23 | . 23 . Successful 13 | . 13 . Failed 10 | . 10 . Catastrophic 1 | . 1 . Database Lockouts . | . . . Manual . | . . . Terminals 19 | . 19 . Fabricators . | . . . Repair Stations . | . . . Recycling Units 4 | . 4 . Scanalyzers . | . . . Garrison Access . | . . . Terminal Hacks 10 | . 10 . Level Access Points 1 | . 1 . Unreport Threat 2 | . 2 . Locate Traps 2 | . 2 . Disarm Traps 1 | . 1 . Registered Components 1 | . 1 . Zone Layout 3 | . 3 . Fabricator Hacks . | . . . Repair Station Hacks . | . . . Recycling Unit Hacks 3 | . 3 . Report Inventory 2 | . 2 . Retrieve Components 1 | . 1 . Scanalyzer . | . . . Garrison Access Hacks . | . . . Unauthorized Hacks . | . . . Terminals . | . . . Fabricators . | . . . Repair Stations . | . . . Recycling Units . | . . . Scanalyzers . | . . . Garrison Access . | . . . Data Cores Recovered . | . . . Used . | . . . Hacking Detections 5 | . 5 . Full Trace Events 4 | . 4 . Feedback Events . | . . . Feedback Blocked . | . . . Robot Schematics Acquired . | . . . Robots Built . | . . . Authchips . | . . . Time . | . . . Total Robot Build Rating . | . . . Part Schematics Acquired . | . . . Parts Built . | . . . Authchips . | . . . Time . | . . . Total Part Build Rating . | . . . Parts Repaired . | . . . Time . | . . . Parts Recycled . | . . . Recycled Matter . | . . . Retrieved Matter . | . . . Retrieved Components 10 | . 10 . Parts Scanalyzed . | . . . Part Schematics Acquired . | . . . Parts Damaged . | . . . Bothacking | -11 -10 -10 ------------ Run | Scr Mat Min Used RIF Installer . | . . . Robots Hacked . | . . . Non-combat . | . . . Combat . | . . . Robot Hacks Applied . | . . . Relay Couplers Released . | . . . Fabnet Peak Effective % . | . . . Robots Rewired . | . . . Allies Hacked . | . . . Hacks Repelled . | . . . Allies | -11 -10 -10 -------- Run | Scr Mat Min Total Allies . | . . . Largest Group . | . . . Highest-Rated Group . | . . . Highest-Rated Ally . | . . . Total Orders . | . . . Ally Attacks . | . . . Total Damage . | . . . Kills . | . . . Allies Corrupted . | . . . Allies Melted . | . . . Intel | -11 -10 -10 ------- Run | Scr Mat Min Robot Analysis Total . | . . . Derelict Logs Recovered . | . . . Drone Launches . | . . . Drone Recoveries . | . . . Exploration | -11 -10 -10 ------------- Run | Scr Mat Min Turns Passed 1336 | 78 1061 197 Spaces Moved 795 | 41 664 90 Core 27 | 13 . 14 Treads . | . . . Legs 765 | 28 664 73 Wheels 3 | . . 3 Hover . | . . . Flight . | . . . Fastest Speed 50 | 50 120 50 Average Speed 136 | 102 142 110 Slowest Speed 190 | 120 190 190 Overloaded Moves . | . . . Propulsion Burnouts . | . . . Robots Hopped . | . . . Cave-ins Triggered . | . . . Exploration Rate (%) 43 | 3 99 27 Regions Visited 2 Branch Regions 1 Pre-discovered Areas . | . . . Known Exits Taken . | . . . Unknown Exits Taken 2 | 1 1 . Scrap Searched . | . . . Spaces Dug . | . . . Terrain Destroyed 44 | . 44 . Melee . | . . . Projectile . | . . . AOE 44 | . 44 . Terrain Rammed . | . . . Walls Destroyed . | . . . Machines Disabled . | . . . Actions | -11 -10 -10 --------- Run | Scr Mat Min Total 925 | 62 726 137 Wait 5 | . 5 . Move 793 | 40 663 90 Hop . | . . . Pick Up 20 | 8 10 2 Fast Attach 5 | 3 2 . Attach 8 | 2 3 3 Detach . | . . . Swap 6 | 1 4 1 Drop 12 | 1 10 1 Fire 65 | 7 29 29 Melee . | . . . Ram 11 | . . 11 Kick . | . . . Crush . | . . . Escape Stasis . | . . . Rewire . | . . . Trap . | . . . Miscellaneous . | . . . Route ------- -11/Scrapyard -10/Materials (discovered 4 exits: *Mat x3 / [*Min]) -10/Mines History --------- Turn | Location | Event 22 | -11/Scrapyard | Discovered new exit (range 16) 79 | -11/Scrapyard | Entered Materials 270 | -10/Materials | Discovered new exit (range 16) 303 | -10/Materials | Build established: Mutant 597 | -10/Materials | Discovered new exit (range 16) 857 | -10/Materials | Identified exit to Materials 1140 | -10/Materials | Entered Mines 1141 | -10/Mines | Assembled infested the area 1144 | -10/Mines | Met a Derelict bent on vengeance 1300 | -10/Mines | Core integrity fell below 50% 1329 | -10/Mines | Core integrity fell below 20% 1337 | -10/Mines | Destroyed by as-30743 with Assembled Heavy Rifle Last Messages --------------- 01300_ as-37300 destroyed. 01300_ Switching to secondary target: as-05028. 01301_ Aluminum Leg destroyed. 01303_ Lgt. Nuclear Core destroyed. 01305_ as-05028 destroyed. 01305_ Switching to secondary target: as-30743. 01305_ Lgt. Assault Rifle destroyed. 01306_ System corrupted: Beam Rifle rejected. 01308_ Acquired Beam Rifle. 01315_ Beam Rifle destroyed. 01316_ Acquired 6 matter. 01323_ Slammed into T-07 Excavator. 01323_ T-07 Excavator destroyed. 01324_ Acquired Wheel. 01328_ Slammed into as-30743. 01334_ Targeting Computer broken. 01334_ Destabilizing: Short circuit. 01335_ Slammed into as-30743. 01336_ Structural Scanner destroyed. 01336_ Slammed into as-30743. Map ----- +----------------------------------------------------+ | ?????????????????????????### ### ##?? | | ??????????????????????###### ##?? | | ????????????????????####### """ ###?? | | ???????????????????##### """ ####?? | | ???????????????????### """ ###??? | | ???????????????????## % ###???? | | ???????????????????## % ###???? | | ??????????????????### ##????? | | ??????????????## ?### ##????? | | ??????????????## ?## ###???? | | ??????????????## ### ## ###???? | | ??????????????## #### #### ##???? | | ?????????????? % ## ###### ##???? | | ????????????????## ## ###### ###???? | | ???????????????### # ##### ####???? | | ??????????????#### ###?## ####????? | | ?????????????#### ###?## ###?????? | | ??????????###### ##??## ##?????? | | ??????????##### ###??## ##?????? | | ?????????### ######## ###?????? | | ?????????## ### ############?????? | | ?????????## ##### %% ########??????? | | ?????????### ???### #####????????? | | ?????????####?????### % ####????????? | | ??????????###?????### # a ##????????? | | ???????????????????## ##@ ##????????? | | ???????????????????## ##%%%% ##????????? | | ???????????????????## ### %%###????????? | | ???????????????????## ### ###????????? | | ???????????????????#### #### ##?????????? | | ???????????????????#### ?### ##?????????? | | ???????????????????????%??## ##?????????? | | ??????????????????????? ??## *##?????????? | | ??????????????????????? ??##%###?????????? | | ??????????????????????? ??##!###?????????? | | ??????????????????????? ??#####??????????? | | ??????????????????????? ??#####??????????? | | ?????????????????????????????????????????? | | ?????????????????????????????????????????? | | ?????????????????????????????????????????? | | ?????????????????????????????????????????? | | ?????????????????????????????????????????? | | ?????????????????????????????????????????? | | ?????????????????????????????????????????? | | ?????????????????????????????????????????? | | ?????????????????????????????????????????? | | ?????????????????????????????????????????? | | ?????????????????????????????????????????? | | ?????????????????????????????????????????? | | ?????????????????????????????????????????? | +----------------------------------------------------+ Best States ------------- Heat Dissipation 25 Energy Generation 14 Energy Capacity 250 Matter Stores 300 Matter Capacity 300 Sight Range 16 Terrain Scan Density 10 Armor Coverage 150 Resistance: KI 20 Resistance: TH 20 Resistance: EX 20 Resistance: EM 20 Resistance: I 20 Resistance: S 20 Resistance: P 20 Evasion (%) 55 Targeting Accuracy 5 Offensive Hacking 10 Item Schematics ----------------- None Robot Schematics ------------------ None Fabricated ------------ Nothing Alien Tech Used ----------------- None Achievements -------------- None Challenges ------------ None Game ------ Seed PowerDisruptorThruster Manual? 0 Play Time 00:17:41 Cumulative 74.1 hours Start 2022.09.21 @ 00:27:40 End 2022.09.21 @ 00:42:39 Sessions 1 Manual Loads 0 Difficulty Adventurer Special Mode None Game No. 82 Rogue 0 Adventurer 82 Explorer 0 Win Type - Total 0 Types 0/0/0/0/0/0/0/0/0 Lore% 35 Gallery% 48 Achievement% 33 Wizard Run 0 Options --------- ASCII 0 Keyboard 0 Movement Mouse Keybinds 0 Fullscreen 1 Font 18/SmallcapsGlow Map View 112x50 Tactical HUD 1 Map Filters NONE Filters NONE Steam 1 RUN: 063b7e67-8aa8-41ea-8b23-1f629376b5e7